fUST/lending_fUST_20260127
["ID","MTS","AMOUNT","RATE_DAILY","PERIOD"]
[403668911,1769459266111,-624.058795,0.00019178,2]
[403668912,1769459266133,-624.058795,0.00019178,2]
[403668913,1769459266153,-624.058795,0.00019178,2]
[403668914,1769459266175,-624.058795,0.00019178,2]
[403668915,1769459266197,-624.058795,0.00019178,2]
[403668916,1769459266218,-624.058795,0.00019178,2]
[403668917,1769459266239,-624.058795,0.00019178,2]
[403668918,1769459266260,-624.058795,0.00019178,2]
[403668919,1769459266281,-624.058795,0.00019178,2]
[403668920,1769459266302,-624.058795,0.00019178,2]
[403668921,1769459266322,-812.787347,0.00019178,2]
[403668922,1769459266343,-812.787347,0.00019178,2]
[403668924,1769459266365,-812.787347,0.00019178,2]
[403668925,1769459266386,-812.787347,0.00019178,2]
[403668926,1769459266407,-812.787347,0.00019178,2]
[403668927,1769459266428,-812.787347,0.00019178,2]
[403668928,1769459266451,-812.787347,0.00019178,2]
[403668929,1769459266472,-812.787347,0.00019178,2]
[403668930,1769459266496,-812.787347,0.00019178,2]
[403668931,1769459266519,-812.787347,0.00019178,2]
[403668932,1769459266541,-3719.250888,0.00019178,2]
[403668933,1769459266563,-812.787347,0.00019178,2]
[403668934,1769459266583,-3719.250888,0.00019178,2]
[403668935,1769459266605,-812.787347,0.00019178,2]
[403668936,1769459266625,-3719.250888,0.00019178,2]
[403668937,1769459266775,-3719.250888,0.00019178,2]
[403668938,1769459266798,-812.787347,0.00019178,2]
[403668939,1769459266820,-812.787347,0.00019178,2]
[403668940,1769459266842,-3719.250888,0.00019178,2]
[403668941,1769459266862,-812.787347,0.00019178,2]
[403668942,1769459266884,-3719.250888,0.00019178,2]
[403668943,1769459266905,-812.787347,0.00019178,2]
[403668944,1769459266928,-3719.250888,0.00019178,2]
[403668945,1769459266948,-3719.250888,0.00019178,2]
[403668946,1769459266970,-151.0,0.00019178,2]
[403668947,1769459266991,-151.0,0.00019178,2]
[403668948,1769459267012,-3719.250888,0.00019178,2]
[403668949,1769459267033,-151.0,0.00019178,2]
[403668950,1769459267056,-3719.250888,0.00019178,2]
[403668951,1769459267076,-151.0,0.00019178,2]
[403668952,1769459267099,-2756.95443627,0.00019178,2]
[403668979,1769459424685,15003.64238732,0.00034652,120]
[403669010,1769459433205,-5000.0,9.9e-05,2]
[403669011,1769459433215,-246.69762484,9.95e-05,2]
[403669012,1769459433227,-250.15789213,0.0001,2]
[403669013,1769459433237,-425.15890815,0.00010618,2]
[403669014,1769459433246,-291.10319732,0.0001195,2]
[403669015,1769459433256,-300.0,0.00012128,2]
[403669016,1769459433266,-4543.08730156,0.00012129,2]
[403669017,1769459436874,-444.54488708,0.00012129,2]
[403669041,1769459438510,-9315.114067,0.00012129,2]
[403669045,1769459438536,-63601.91231564,0.00012129,2]
[403669051,1769459438592,-446.03775753,0.00012129,2]
[403669053,1769459438605,-599.78745696,0.00012129,2]
[403669058,1769459438649,-10191.39656261,0.00012129,2]
[403669061,1769459438661,-379805.63188056,0.00012129,2]
[403669415,1769459447004,-94304.548305,0.00012129,2]
[403669416,1769459447114,-554.58286843,0.00012129,2]
[403669417,1769459447126,-1316.91553916,0.00012129,2]
[403669418,1769459447136,-1382.8095471,0.00012129,2]
[403669419,1769459447147,-14551.44589633,0.00012129,2]
[403669420,1769459447157,-5072.06148945,0.00012129,2]
[403669421,1769459447168,-302.0,0.00012129,2]
[403669422,1769459447211,-1098.99404815,0.00012129,2]
[403669423,1769459448388,-15794.995525,0.00012129,2]
[403669424,1769459448477,-1135.04524533,0.00012129,2]
[403669425,1769459448488,-1285.20026711,0.00012129,2]
[403669426,1769459448500,-7002.0753392,0.00012129,2]
[403669427,1769459448511,-5098.51023176,0.00012129,2]
[403669428,1769459448523,-5900.64193889,0.00012129,2]
[403669429,1769459448535,-68083.76700024,0.00012129,2]
[403669430,1769459448595,-18805.507598,0.00012129,2]
[403669431,1769459448636,-5000.0,0.00012007,2]
[403669432,1769459448646,-3950.0,0.00012129,2]
[403669433,1769459448657,-6194.22010145,0.00012129,2]
[403669434,1769459448668,-253.7425319,0.00012129,2]
[403669560,1769459920395,2899.47,6.639e-05,2]
[403669576,1769459989882,500.0,0.00034569,120]
[403669577,1769459990096,257.49388791,0.00034569,120]
[403669581,1769460003169,500.0,0.00034569,120]
[403669582,1769460003398,379.80243071,0.00034569,120]
[403669583,1769460041782,500.0,0.00034569,120]
[403669594,1769460337987,501.22092317,0.00034569,120]
[403669606,1769460433117,-500.23123752,0.00010874,2]
[403669607,1769460433137,-242.85217654,0.00010926,2]
[403669608,1769460433158,-200.92610756,0.00010979,2]
[403669648,1769460631638,-665.05160848,0.0001076,2]
[403669662,1769460637775,-439.0,0.0001076,2]
[403669663,1769460637786,-3895.94839152,0.0001076,2]
[403669664,1769460637795,-303.17,0.00010869,2]
[403669665,1769460637804,-5818.86514164,0.00010979,2]
[403669666,1769460637814,-574.0,0.00010979,2]
[403669667,1769460637824,-500.0,0.00011446,2]
[403669668,1769460637833,-1541.15438355,0.00011545,2]
[403669669,1769460637842,-151.0,0.00011638,2]
[403669670,1769460637851,-151.0,0.00011638,2]
[403669671,1769460637862,-151.0,0.00011638,2]
[403669672,1769460637873,-151.0,0.00011638,2]
[403669673,1769460637883,-151.0,0.00011638,2]
[403669674,1769460637896,-301.99999997,0.00011638,2]
[403669675,1769460637906,-300.0,0.00011644,2]
[403669676,1769460637916,-17234.96077829,0.00011645,2]
[403669677,1769460637926,-300.0,0.00011645,2]
[403669678,1769460637936,-300.0,0.00011645,2]
[403669679,1769460637947,-300.0,0.00011645,2]
[403669680,1769460637957,-300.0,0.00011645,2]
[403669681,1769460637969,-300.0,0.00011645,2]
[403669682,1769460637978,-300.0,0.00011645,2]
[403669683,1769460637988,-300.0,0.00011645,2]
[403669684,1769460637997,-300.0,0.00011645,2]
[403669685,1769460638007,-300.0,0.00011645,2]
[403669686,1769460638016,-300.0,0.00011645,2]
[403669687,1769460638026,-300.0,0.00011645,2]
[403669688,1769460638035,-300.0,0.00011645,2]
[403669689,1769460638044,-300.0,0.00011645,2]
[403669690,1769460638054,-300.0,0.00011645,2]
[403669691,1769460638063,-300.0,0.00011645,2]
[403669692,1769460638072,-600.0,0.00011877,2]
[403669693,1769460638082,-500.0,0.00012049,2]
[403669694,1769460638091,-157.71,0.00012329,2]
[403669695,1769460638100,-788.55,0.00012329,2]
[403669696,1769460638110,-500.0,0.00012683,2]
[403669697,1769460638119,-420.0,0.00012787,2]
[403669698,1769460638129,-286.56556831,0.00012926,2]
[403669699,1769460638138,-720.0,0.00013065,2]
[403669700,1769460638147,-298.46,0.000131,2]
[403669701,1769460638156,-1041.66666667,0.00013202,2]
[403669702,1769460638166,-500.0,0.00013351,2]
[403669703,1769460638176,-4687.13209525,0.00013466,2]
[403670204,1769460644358,-2235.72291812,0.00013466,2]
[403670211,1769460644415,-414.09177835,0.00013466,2]
[403670214,1769460644426,-1906.2663663,0.00013466,2]
[403670216,1769460644437,-157.59633199,0.00013466,2]
[403670218,1769460644446,-118.58377233,0.00013673,2]
[403670220,1769460644457,-181.41622767,0.00013673,2]
[403670222,1769460644467,-500.0,0.00013699,2]
[403670224,1769460644476,-500.0,0.00014018,2]
[403670226,1769460644485,-587.0,0.00014042,2]
[403670228,1769460644495,-600.0,0.00014221,2]
[403670230,1769460644504,-1000.0,0.00014247,2]
[403670232,1769460644513,-864.0,0.00014371,2]
[403670234,1769460644522,-500.0,0.00014719,2]
[403670236,1769460644531,-900.0,0.00014768,2]
[403670238,1769460644540,-1500.0,0.00014795,2]
[403670240,1769460644548,-504.87703631,0.000149,2]
[403670242,1769460644559,-90.93609874,0.000149,2]
[403670244,1769460644568,-862.0,0.000149,2]
[403670246,1769460644576,-330.27896009,0.00014926,2]
[403670248,1769460644585,-191.81,0.00014968,2]
[403670250,1769460644594,-275.6855465,0.00014989,2]
[403670252,1769460644603,-1028.35432591,0.0001499,2]
[403670255,1769460644617,-2029.20787857,0.0001499,2]
[403670373,1769460645890,-27068.67334768,0.0001499,2]
[403672476,1769461229607,-752.79414904,7.6e-05,2]
[403672486,1769461589004,200.0,0.0001,20]
[403672487,1769461589734,260.17,0.0001,20]
[403672488,1769461714659,309.78364764,6.639e-05,2]
[403672489,1769461762138,-198.66511912,7.084e-05,2]
[403672529,1769461831887,-714.14912623,7.013e-05,2]
[403672550,1769461837861,-4285.85087377,7.013e-05,2]
[403672551,1769461837870,-793.8157929,7.084e-05,2]
[403672552,1769461837881,-4007.51908798,7.084e-05,2]
[403672553,1769461837891,-153.0,7.155e-05,2]
[403672554,1769461837900,-5000.0,7.156e-05,2]
[403672555,1769461837909,-300.0,7.225e-05,2]
[403672556,1769461837918,-300.0,7.225e-05,2]
[403672557,1769461837927,-225.65824244,7.265e-05,2]
[403672558,1769461837937,-300.0,7.521e-05,2]
[403672559,1769461837946,-300.0,7.521e-05,2]
[403672560,1769461837955,-300.0,7.521e-05,2]
[403672561,1769461837965,-300.0,7.521e-05,2]
[403672562,1769461837974,-300.0,7.521e-05,2]
[403672563,1769461837984,-300.0,7.521e-05,2]
[403672564,1769461837993,-300.0,7.521e-05,2]
[403672565,1769461838002,-300.0,7.521e-05,2]
[403672566,1769461838011,-300.0,7.521e-05,2]
[403672567,1769461838021,-300.0,7.521e-05,2]
[403672568,1769461838030,-300.0,7.521e-05,2]
[403672569,1769461838040,-300.0,7.521e-05,2]
[403672570,1769461838049,-300.0,7.521e-05,2]
[403672571,1769461838058,-300.0,7.521e-05,2]
[403672572,1769461838068,-300.0,7.521e-05,2]
[403672573,1769461838077,-9265.54777855,7.521e-05,2]
[403672574,1769461838087,-0.51585096,7.6e-05,2]
[403672575,1769461838096,-600.0,7.67e-05,2]
[403672576,1769461838105,-420.0,7.948e-05,2]
[403672577,1769461838114,-720.0,8.437e-05,2]
[403672578,1769461838123,-587.0,8.742e-05,2]
[403672579,1769461838133,-266.27672607,9.265e-05,2]
[403672580,1769461838142,-864.0,9.281e-05,2]
[403672581,1769461838152,-1000.0,0.00010209,2]
[403672582,1769461838161,-1000.0,0.0001123,2]
[403672583,1769461838170,-244.0,0.0001123,2]
[403672584,1769461838181,-306.89520971,0.00011265,2]
[403672585,1769461838195,-1000.0,0.00012353,2]
[403672586,1769461838204,-492.0,0.00012353,2]
[403672587,1769461838214,-347.51369335,0.00013265,2]
[403672588,1769461838226,-918.64763984,0.00013589,2]
[403672589,1769461838238,-81.35236016,0.00013589,2]
[403672590,1769461838248,-791.0,0.00013589,2]
[403672591,1769461838259,-300.0,0.00013673,2]
[403672592,1769461838268,-1000.0,0.00013699,2]
[403672593,1769461838278,-500.0,0.00013699,2]
[403672594,1769461838287,-600.0,0.00014221,2]
[403672595,1769461838297,-1000.0,0.00014247,2]
[403672596,1769461838306,-300.0,0.00014768,2]
[403672597,1769461838316,-1500.0,0.00014795,2]
[403672598,1769461838326,-1041.66666667,0.00014797,2]
[403672599,1769461838335,-1000.0,0.00014947,2]
[403672600,1769461838345,-286.22638005,0.00014947,2]
[403672601,1769461838357,-713.77361995,0.00014947,2]
[403672602,1769461838366,-3324.22567278,0.0001499,2]
[403672925,1769461847920,-5000.0,0.0001484,2]
[403672926,1769461848171,-66549.53877506,0.0001499,2]
[403672927,1769461848182,-192.97988255,0.00014999,2]
[403672928,1769461848196,-1020.44694379,0.00015,2]
[403672929,1769461848206,-580.47140307,0.00015,2]
[403672930,1769461848216,-78769.91693024,0.00015,2]
[403672931,1769461848227,-24385.87077918,0.00015,2]
[403672932,1769461848238,-151.21168241,0.00015,2]
[403672933,1769461848249,-15000.0,0.00015,2]
[403672934,1769461848259,-659.721665,0.00015068,2]
[403672935,1769461848269,-174.55748242,0.00015126,2]
[403672936,1769461848279,-388.13217699,0.00015265,2]
[403672937,1769461848289,-2813.05641264,0.000153,2]
[403672938,1769461848301,-4829.54777855,0.000153,2]
[403672939,1769461872023,684.50606869,0.00034569,120]
[403672949,1769462103127,459.22385638,0.00030137,120]
[403672950,1769462103158,2967.4917567,0.00030137,120]
[403672956,1769462347399,150.0,0.0003013,120]
[403672957,1769462421580,447.89478834,0.00034637,120]
[403672958,1769462423184,500.0,0.00034637,120]
[403672959,1769462425373,500.0,0.00034637,120]
[403672960,1769462438195,500.0,0.00034637,120]
[403672961,1769462464902,500.0,0.00034637,120]
[403672962,1769462465133,500.0,0.00034637,120]
[403672964,1769462481557,550.44546697,0.00034637,120]
[403672965,1769462483808,500.0,0.00034637,120]
[403672976,1769462890126,427.04095451,0.00034638,120]
[403672984,1769462951516,-194.96872147,0.00011758,2]
[403672985,1769462951538,-586.0,0.00011817,2]
[403672986,1769462951564,-300.0,0.00012052,2]
[403672987,1769462951588,-300.0,0.00012052,2]
[403672988,1769462951613,-300.0,0.00012052,2]
[403672989,1769462951636,-300.0,0.00012052,2]
[403672990,1769462951662,-300.0,0.00012052,2]
[403672991,1769462951687,-300.0,0.00012052,2]
[403672992,1769462951710,-300.0,0.00012052,2]
[403672993,1769462951736,-300.0,0.00012052,2]
[403672994,1769462951759,-300.0,0.00012052,2]
[403672995,1769462951784,-300.0,0.00012052,2]
[403672996,1769462951809,-300.0,0.00012052,2]
[403672997,1769462951839,-300.0,0.00012052,2]
[403672998,1769462951863,-300.0,0.00012052,2]
[403672999,1769462951888,-300.0,0.00012052,2]
[403673000,1769462951916,-300.0,0.00012052,2]
[403673001,1769462951937,-154.98965131,0.00012057,2]
[403673002,1769462951958,-500.0,0.00013699,2]
[403673003,1769462951979,-230.06309133,0.00013758,2]
[403673004,1769462952000,-1041.66666667,0.00014222,2]
[403673005,1769462952022,-1000.0,0.00014247,2]
[403673006,1769462952044,-1500.0,0.00014795,2]
[403673007,1769462952070,-493328.27002349,0.0001489,2]
[403673008,1769462952091,-58546.00753664,0.0001499,2]
[403673080,1769463037992,-500.0,0.00013699,2]
[403673081,1769463038002,-1000.0,0.00014247,2]
[403673082,1769463038012,-5000.0,0.0001467,2]
[403673083,1769463038022,-1500.0,0.00014795,2]
[403673084,1769463038032,-678.99476903,0.00014818,2]
[403673085,1769463038041,-638.29399089,0.00014968,2]
[403673086,1769463038051,-41453.99246336,0.0001499,2]
[403673087,1769463038061,-527.777332,0.00015068,2]
[403673088,1769463038071,-300.0,0.00015289,2]
[403673089,1769463038081,-300.0,0.00015289,2]
[403673090,1769463038091,-300.0,0.00015289,2]
[403673091,1769463038101,-300.0,0.00015289,2]
[403673092,1769463038111,-300.0,0.00015289,2]
[403673093,1769463038121,-300.0,0.00015289,2]
[403673094,1769463038131,-300.0,0.00015289,2]
[403673095,1769463038141,-300.0,0.00015289,2]
[403673096,1769463038151,-300.0,0.00015289,2]
[403673097,1769463038160,-300.0,0.00015289,2]
[403673098,1769463038170,-300.0,0.00015289,2]
[403673099,1769463038181,-300.0,0.00015289,2]
[403673100,1769463038191,-300.0,0.00015289,2]
[403673101,1769463038200,-300.0,0.00015289,2]
[403673102,1769463038210,-300.0,0.00015289,2]
[403673103,1769463038220,-600.0,0.00015289,2]
[403673104,1769463038229,-286.23,0.0001529,3]
[403673105,1769463038242,-858.74,0.0001529,3]
[403673106,1769463038252,-163.964,0.0001529,2]
[403673107,1769463038261,-589.0,0.000153,2]
[403673108,1769463038271,-589.0,0.000153,2]
[403673109,1769463038281,-589.0,0.000153,2]
[403673110,1769463038290,-589.0,0.000153,2]
[403673111,1769463038299,-589.0,0.000153,2]
[403673112,1769463038308,-589.0,0.000153,2]
[403673113,1769463038318,-589.0,0.000153,2]
[403673114,1769463038328,-589.0,0.000153,2]
[403673115,1769463038337,-589.0,0.000153,2]
[403673116,1769463038347,-589.0,0.000153,2]
[403673117,1769463038356,-589.0,0.000153,2]
[403673118,1769463038365,-589.0,0.000153,2]
[403673119,1769463038375,-589.0,0.000153,2]
[403673120,1769463038384,-589.0,0.000153,2]
[403673121,1769463038393,-589.0,0.000153,2]
[403673122,1769463038402,-589.0,0.000153,2]
[403673123,1769463038412,-589.0,0.000153,2]
[403673124,1769463038421,-589.0,0.000153,2]
[403673125,1769463038431,-589.0,0.000153,2]
[403673126,1769463038440,-589.0,0.000153,2]
[403673127,1769463038449,-589.0,0.000153,2]
[403673128,1769463038458,-589.0,0.000153,2]
[403673129,1769463038468,-589.0,0.000153,2]
[403673130,1769463038477,-589.0,0.000153,2]
[403673131,1769463038487,-589.0,0.000153,2]
[403673132,1769463038499,-589.0,0.000153,2]
[403673133,1769463038509,-589.0,0.000153,2]
[403673134,1769463038520,-589.0,0.000153,2]
[403673135,1769463038530,-589.0,0.000153,2]
[403673136,1769463038542,-589.0,0.000153,2]
[403673137,1769463038551,-589.0,0.000153,2]
[403673138,1769463038561,-589.0,0.000153,2]
[403673139,1769463038571,-589.0,0.000153,2]
[403673140,1769463038580,-589.0,0.000153,2]
[403673141,1769463038593,-589.0,0.000153,2]
[403673142,1769463038602,-589.0,0.000153,2]
[403673143,1769463038611,-751.65,0.000153,2]
[403673144,1769463038622,-9767.24,0.00015342,2]
[403673145,1769463038631,-2000.0,0.00015342,2]
[403673146,1769463038641,-6979.39788784,0.00015355,2]
[403673147,1769463038652,-151.0,0.00015391,2]
[403673148,1769463038662,-151.0,0.00015391,2]
[403673149,1769463038672,-151.0,0.00015391,2]
[403673150,1769463038681,-763335.00257211,0.000154,2]
[403673151,1769463038694,-22629.2,0.000154,2]
[403673152,1769463038706,-20198.66666667,0.000154,2]
[403673153,1769463038719,-5156.63576711,0.000154,2]
[403673154,1769463038730,-5538.39336576,0.000154,2]
[403673155,1769463038742,-502.7,0.000154,2]
[403673156,1769463038754,-752.73625706,0.000154,2]
[403673203,1769463040231,-17698.23526041,0.000154,2]
[403673207,1769463040287,-1429.68203206,0.000154,2]
[403673319,1769463043292,-2003.2858229,0.00015147,2]
[403673322,1769463043459,-453.0,0.00015147,2]
[403673332,1769463046271,-1041.66666667,0.00015147,2]
[403673333,1769463046329,-1027.74280839,0.00015147,2]
[403673335,1769463081905,500.0,0.00034638,120]
[403673336,1769463101510,503.86877219,0.00034638,120]
[403673337,1769463107175,506.18296326,0.00034638,120]
[403673338,1769463120070,501.91910219,0.00034638,120]
[403673339,1769463127801,519.55713804,0.00034638,120]
[403673341,1769463130268,589.66981434,0.00034638,120]
[403673343,1769463134377,502.56574166,0.00034638,120]
[403673349,1769463141810,500.0,0.00034638,120]
[403673350,1769463142061,500.0,0.00034638,120]
[403673351,1769463142306,500.0,0.00034638,120]
[403673352,1769463142541,612.95,0.00034638,120]
[403673353,1769463144524,500.0,0.00034638,120]
[403673354,1769463148730,618.56012672,0.00034638,120]
[403673355,1769463149101,501.47093583,0.00034638,120]
[403673357,1769463151280,448.85253247,0.00034638,120]
[403673358,1769463152478,500.0,0.00034638,120]
[403673363,1769463163749,553.09457649,0.00034638,120]
[403673368,1769463174637,502.01928124,0.00034638,120]
[403673369,1769463177818,500.0,0.00034638,120]
[403673370,1769463178054,316.93614971,0.00034638,120]
[403673372,1769463186685,521.82944431,0.00034638,120]
[403673373,1769463187954,584.35549041,0.00034638,120]
[403673375,1769463193129,500.0,0.00034638,120]
[403673376,1769463197978,544.23770606,0.00034638,120]
[403673377,1769463206420,500.0,0.00034638,120]
[403673378,1769463206650,384.06,0.00034638,120]
[403673379,1769463208338,500.0,0.00034638,120]
[403673380,1769463208579,500.0,0.00034638,120]
[403673381,1769463208774,500.00000003,0.00034638,120]
[403673382,1769463208850,459.71,0.00034638,120]
[403673383,1769463211980,506.75137075,0.00034638,120]
[403673384,1769463213710,643.05863648,0.00034638,120]
[403673385,1769463217328,500.94117066,0.00034638,120]
[403673386,1769463218760,505.5835503,0.00034638,120]
[403673387,1769463222363,627.18789917,0.00034638,120]
[403673388,1769463222888,500.92776314,0.00034638,120]
[403673389,1769463228450,506.76742394,0.00034638,120]
[403673390,1769463229696,501.89312588,0.00034638,120]
[403673391,1769463242575,501.30605799,0.00034638,120]
[403673392,1769463242607,555.42791634,0.00034638,120]
[403673393,1769463247313,502.5434504,0.00034638,120]
[403673394,1769463247741,563.62917191,0.00034638,120]
[403673395,1769463249052,504.69209834,0.00034638,120]
[403673396,1769463249408,547.48096436,0.00034638,120]
[403673397,1769463252920,504.74884452,0.00034573,120]
[403673398,1769463253231,501.58153838,0.00034573,120]
[403673399,1769463254741,522.46627717,0.00034573,120]
[403673400,1769463260006,501.64525198,0.00034573,120]
[403673401,1769463260178,501.61358292,0.00034573,120]
[403673402,1769463267039,629.97272367,0.00034573,120]
[403673404,1769463268779,506.14677867,0.00034573,120]
[403673408,1769463275035,500.0,0.00034573,120]
[403673409,1769463278542,500.0,0.00034573,120]
[403673410,1769463283401,501.66863361,0.00034573,120]
[403673411,1769463284022,506.84270645,0.00034573,120]
[403673412,1769463304387,500.0,0.00034573,120]
[403673413,1769463306528,500.0,0.00034573,120]
[403673414,1769463315180,502.05461521,0.00034573,120]
[403673415,1769463319640,502.34078011,0.00034573,120]
[403673416,1769463325093,526.79150778,0.00034573,120]
[403673418,1769463334396,500.0,0.00034573,120]
[403673425,1769463348491,160.98695642,0.00024911,120]
[403673428,1769463435147,500.0,0.00034573,120]
[403673429,1769463438186,436.60364675,0.00034573,120]
[403673430,1769463447935,523.2033586,0.00034573,120]
[403673431,1769463447975,500.0,0.00034573,120]
[403673432,1769463448031,501.46796945,0.00034573,120]
[403673433,1769463451735,501.45304073,0.00034573,120]
[403673434,1769463453253,500.0,0.00034573,120]
[403673435,1769463455558,521.82726711,0.00034573,120]
[403673436,1769463457499,501.1051683,0.00034573,120]
[403673437,1769463462734,501.27204724,0.00034573,120]
[403673438,1769463462958,500.0,0.00034573,120]
[403673439,1769463464828,500.0,0.00034573,120]
[403673440,1769463468071,501.20374435,0.00034573,120]
[403673441,1769463468259,500.0,0.00034573,120]
[403673442,1769463470248,501.24554553,0.00034573,120]
[403673443,1769463473458,500.0,0.00034573,120]
[403673444,1769463475074,501.05571928,0.00034573,120]
[403673445,1769463476672,500.0,0.00034573,120]
[403673446,1769463476834,501.31539417,0.00034573,120]
[403673447,1769463476864,501.74988239,0.00034573,120]
[403673448,1769463480325,500.0,0.00034573,120]
[403673449,1769463483852,500.0,0.00034573,120]
[403673450,1769463488560,500.0,0.00034573,120]
[403673451,1769463489826,501.04175865,0.00034573,120]
[403673452,1769463497210,508.28204222,0.00034573,120]
[403673453,1769463502175,501.29731001,0.00034573,120]
[403673454,1769463508299,500.0,0.00034573,120]
[403673455,1769463535779,500.0,0.00034573,120]
[403673456,1769463539093,520.47756265,0.00034573,120]
[403673458,1769463549785,501.48748061,0.00034573,120]
[403673459,1769463561805,500.0,0.00034598,120]
[403673460,1769463562708,500.97622675,0.00034598,120]
[403673461,1769463568822,501.58254145,0.00034598,120]
[403673462,1769463570420,500.0,0.00034598,120]
[403673463,1769463575775,501.51292707,0.00034598,120]
[403673464,1769463575945,500.0,0.00034598,120]
[403673465,1769463581023,1000.0,0.0003013,120]
[403673466,1769463582683,500.0,0.00034598,120]
[403673469,1769463599918,502.30511064,0.00034598,120]
[403673470,1769463600725,501.95530969,0.00034598,120]
[403673471,1769463601827,501.02478724,0.00034598,120]
[403673472,1769463603576,501.29004268,0.00034598,120]
[403673473,1769463604596,500.0,0.00034598,120]
[403673474,1769463605452,500.0,0.00034598,120]
[403673475,1769463606824,401.57963219,0.00034598,120]
[403673476,1769463607962,500.0,0.00034598,120]
[403673477,1769463610379,503.99789193,0.00034598,120]
[403673478,1769463614593,501.17746565,0.00034598,120]
[403673479,1769463615500,502.26176271,0.00034598,120]
[403673480,1769463618604,500.0,0.00034598,120]
[403673481,1769463622796,223.06875732,0.00034598,120]
[403673482,1769463623516,502.21403618,0.00034598,120]
[403673483,1769463626525,502.91002634,0.00034598,120]
[403673484,1769463628733,502.33601245,0.00034598,120]
[403673485,1769463631997,501.54980175,0.00034598,120]
[403673488,1769463637544,500.0,0.00034598,120]
[403673489,1769463644858,502.10691797,0.00034598,120]
[403673490,1769463650398,542.48655493,0.00034598,120]
[403673491,1769463653119,500.0,0.00034598,120]
[403673492,1769463654093,502.97420052,0.00034598,120]
[403673493,1769463656575,506.45003065,0.00034598,120]
[403673522,1769463810010,271.9254,0.00034598,120]
[403673530,1769463828919,501.14598421,0.00034598,120]
[403673545,1769463865875,506.12029321,0.0003462,120]
[403673564,1769463912721,501.56039916,0.0003462,120]
[403673570,1769463923725,500.0,0.0003462,120]
[403673574,1769463932660,547.09,0.0003462,120]
[403673579,1769463942005,500.0,0.0003462,120]
[403673583,1769463947015,501.91912132,0.0003462,120]
[403673589,1769463967071,501.89980036,0.0003462,120]
[403673590,1769463967577,501.73781248,0.0003462,120]
[403673591,1769463971381,501.60294905,0.0003462,120]
[403673592,1769463972415,534.60532307,0.0003462,120]
[403673593,1769463978883,500.0,0.0003462,120]
[403673594,1769463979926,505.76784438,0.0003462,120]
[403673595,1769463982274,501.7370498,0.0003462,120]
[403673596,1769463992190,502.3413992,0.0003462,120]
[403673597,1769464003222,500.0,0.0003462,120]
[403673598,1769464007416,500.83385685,0.0003462,120]
[403673599,1769464009478,501.88244877,0.0003462,120]
[403673600,1769464009510,501.51003218,0.0003462,120]
[403673601,1769464012830,502.1917855,0.0003462,120]
[403673602,1769464020962,501.2315809,0.0003462,120]
[403673603,1769464020994,504.28504158,0.0003462,120]
[403673606,1769464043173,502.25912389,0.0003462,120]
[403673608,1769464047898,503.40361173,0.0003462,120]
[403673609,1769464050132,-154.98965131,0.00012057,2]
[403673610,1769464050153,-590.0,0.00012057,2]
[403673611,1769464050173,-210.89532681,0.00012193,2]
[403673612,1769464050194,-572.46,0.00012329,2]
[403673613,1769464050214,-500.0,0.00013273,2]